bitfinex-derivatives/quotes_BTCF0:USTF0_20250608
["timestamp","ask_amount","ask_price","bid_price","bid_amount"]
[1749356507646,0.13887659,105570.0,105560.0,2.33022109]
[1749356509039,0.13887659,105570.0,105560.0,2.33022108]
[1749356509243,0.13887659,105570.0,105560.0,2.33022839]
[1749356509439,0.13887659,105570.0,105560.0,2.31658669]
[1749356509645,0.13887659,105570.0,105560.0,2.21205888]
[1749356509841,0.13887659,105570.0,105560.0,2.22570257]
[1749356510441,0.13887659,105570.0,105560.0,1.49045888]
[1749356510642,0.13887659,105570.0,105560.0,2.22570277]
[1749356511043,0.13887659,105570.0,105560.0,2.21205888]
[1749356511244,0.13887659,105570.0,105560.0,1.50410277]
[1749356511444,0.13887659,105570.0,105560.0,2.41908425]
[1749356511744,0.13887659,105570.0,105560.0,2.43272814]
[1749356512339,0.13887659,105570.0,105560.0,2.41908425]
[1749356512942,0.13887659,105570.0,105560.0,1.71112701]
[1749356513142,0.13887659,105570.0,105560.0,2.41908425]
[1749356513342,0.13887659,105570.0,105560.0,2.43272697]
[1749356513543,0.13887659,105570.0,105560.0,2.43272696]
[1749356513745,0.13887659,105570.0,105560.0,1.71112696]
[1749356514047,0.13887659,105570.0,105560.0,2.43272696]
[1749356514240,0.13887659,105570.0,105560.0,2.43272693]
[1749356514548,0.13887659,105570.0,105560.0,2.41908425]
[1749356514945,0.13887659,105570.0,105560.0,2.53725528]
[1749356515745,0.13887659,105570.0,105560.0,2.53725492]
[1749356515945,0.13887659,105570.0,105560.0,2.53725493]
[1749356516343,0.16977659,105570.0,105560.0,2.53725493]
[1749356516643,0.16977659,105570.0,105560.0,2.53725491]
[1749356516847,0.16977659,105570.0,105560.0,2.52361206]
[1749356517048,0.16977659,105570.0,105560.0,2.53725492]
[1749356517240,0.16977659,105570.0,105560.0,2.67148093]
[1749356517439,0.16977659,105570.0,105560.0,2.46445556]
[1749356517935,0.16977659,105570.0,105560.0,2.47809838]
[1749356518137,0.16977659,105570.0,105560.0,2.46445556]
[1749356518343,0.16977659,105570.0,105560.0,2.47809836]
[1749356519252,0.16977659,105570.0,105560.0,2.47809817]
[1749356519646,0.16977659,105570.0,105560.0,2.47809752]
[1749356519843,0.16977659,105570.0,105560.0,2.4780975]
[1749356520148,0.16977659,105570.0,105560.0,2.47809749]
[1749356521250,0.16977659,105570.0,105560.0,2.47809737]
[1749356521451,0.16977659,105570.0,105560.0,2.33022847]
[1749356521652,0.16977659,105570.0,105560.0,2.53725383]
[1749356521840,0.16977659,105570.0,105560.0,2.52361206]
[1749356522044,0.16977659,105570.0,105560.0,2.53725364]
[1749356523057,0.16977659,105570.0,105560.0,2.52361206]
[1749356523258,0.16977659,105570.0,105560.0,2.53725379]
[1749356523459,0.16977659,105570.0,105560.0,2.52361206]
[1749356523757,0.16977659,105570.0,105560.0,2.53725378]
[1749356524859,0.16977659,105570.0,105560.0,2.5372538]
[1749356525158,0.16977659,105570.0,105560.0,2.53725377]
[1749356525456,0.16977659,105570.0,105560.0,2.53725379]
[1749356525659,0.16977659,105570.0,105560.0,1.81565379]
[1749356525852,0.16977659,105570.0,105560.0,2.53725379]
[1749356526462,0.16977659,105570.0,105560.0,2.53725381]
[1749356526655,0.16977659,105570.0,105560.0,2.52361206]
[1749356526860,0.16977659,105570.0,105560.0,2.10853377]
[1749356527164,0.16977659,105570.0,105560.0,2.41900425]
[1749356527345,0.16977659,105570.0,105560.0,2.22562058]
[1749356528157,0.16977659,105570.0,105560.0,2.22562063]
[1749356528350,0.16977659,105570.0,105560.0,2.21197888]
[1749356528551,0.16977659,105570.0,105560.0,2.22562061]
[1749356528748,0.16977659,105570.0,105560.0,2.21197888]
[1749356528954,0.16977659,105570.0,105560.0,2.22562063]
[1749356529960,0.16977659,105570.0,105560.0,2.21197888]
[1749356530360,0.16977659,105570.0,105560.0,2.22562136]
[1749356531353,0.16977659,105570.0,105560.0,2.21197888]
[1749356531860,0.16977659,105570.0,105560.0,2.22560196]
[1749356532356,0.16977659,105570.0,105560.0,2.21197888]
[1749356532753,0.16977659,105570.0,105560.0,2.22560195]
[1749356532954,0.16977659,105570.0,105560.0,2.21197888]
[1749356533262,0.16977659,105570.0,105560.0,2.22560204]
[1749356533457,0.16977659,105570.0,105560.0,2.21197888]
[1749356533654,0.16977659,105570.0,105560.0,2.22560126]
[1749356533854,0.16977659,105570.0,105560.0,1.50400126]
[1749356534054,0.16977659,105570.0,105560.0,2.22560126]
[1749356535062,0.16977659,105570.0,105560.0,2.22575178]
[1749356536062,0.16977659,105570.0,105560.0,2.22575179]
[1749356536362,0.16977659,105570.0,105560.0,2.21197888]
[1749356536758,0.16977659,105570.0,105560.0,2.22575206]
[1749356536959,0.16977659,105570.0,105560.0,2.22575205]
[1749356537260,0.16977659,105570.0,105560.0,1.49037888]
[1749356537462,0.16977659,105570.0,105560.0,2.43277305]
[1749356537962,0.16977659,105570.0,105560.0,2.41899989]
[1749356538163,0.16977659,105570.0,105560.0,2.43277306]
[1749356538662,0.16977659,105570.0,105560.0,2.41899989]
[1749356538863,0.16977659,105570.0,105560.0,2.4190018]
[1749356539064,0.16977659,105570.0,105560.0,2.43277541]
[1749356540669,0.16977659,105570.0,105560.0,2.43277772]
[1749356541368,0.16977659,105570.0,105560.0,2.4189618]
[1749356541569,0.20267659,105570.0,105560.0,2.4189618]
[1749356542069,0.20267659,105570.0,105560.0,2.43273838]
[1749356542464,0.20267659,105570.0,105560.0,2.43273842]
[1749356543164,0.20267659,105570.0,105560.0,2.4327384]
[1749356543374,0.20267659,105570.0,105560.0,2.43273839]
[1749356543866,0.20267659,105570.0,105560.0,2.22571545]
[1749356544970,0.20267659,105570.0,105560.0,1.50411542]
[1749356545171,0.20267659,105570.0,105560.0,2.21193888]
[1749356545768,0.20267659,105570.0,105560.0,2.22571752]
[1749356546272,0.20267659,105570.0,105560.0,2.22571751]
[1749356546459,0.20267659,105570.0,105560.0,1.50411751]
[1749356546665,0.20267659,105570.0,105560.0,2.22571751]
[1749356546863,0.20267659,105570.0,105560.0,1.50411753]
[1749356547059,0.20267659,105570.0,105560.0,2.22571803]
[1749356547268,0.20267659,105570.0,105560.0,2.21193888]
[1749356547470,0.20267659,105570.0,105560.0,2.22571823]
[1749356548372,0.20267659,105570.0,105560.0,2.22571815]
[1749356548572,0.20267659,105570.0,105560.0,2.22571774]
[1749356548775,0.20267659,105570.0,105560.0,2.21193888]
[1749356548969,0.20267659,105570.0,105560.0,2.22571813]
[1749356550370,0.20267659,105570.0,105560.0,2.22571886]
[1749356551477,0.20267659,105570.0,105560.0,2.43268275]
[1749356551776,0.20267659,105570.0,105560.0,1.71108275]
[1749356552075,0.20267659,105570.0,105560.0,2.43268275]
[1749356552277,0.20267659,105570.0,105560.0,2.41890277]
[1749356552478,0.20267659,105570.0,105560.0,2.43268284]
[1749356552677,0.20267659,105570.0,105560.0,2.41890277]
[1749356552977,0.20267659,105570.0,105560.0,2.43268283]
[1749356553780,0.20267659,105570.0,105560.0,2.41890277]
[1749356553976,0.20267659,105570.0,105560.0,2.43268287]
[1749356554277,0.20267659,105570.0,105560.0,2.43268392]
[1749356554478,0.20267659,105570.0,105560.0,2.41890277]
[1749356554677,0.20267659,105570.0,105560.0,2.43268402]
[1749356555379,0.20267659,105570.0,105560.0,2.41890277]
[1749356555870,0.20267659,105570.0,105560.0,1.71108407]
[1749356556071,0.20267659,105570.0,105560.0,2.41890277]
[1749356556273,0.20267659,105570.0,105560.0,1.71108407]
[1749356556472,0.20267659,105570.0,105560.0,2.43268408]
[1749356557181,0.20267659,105570.0,105560.0,2.43241121]
[1749356557383,0.20267659,105570.0,105560.0,2.43241123]
[1749356557676,0.20267659,105570.0,105560.0,2.4186299]
[1749356557881,0.20267659,105570.0,105560.0,2.43241141]
[1749356558381,0.20267659,105570.0,105560.0,2.43241142]
[1749356559180,0.20267659,105570.0,105560.0,2.43241144]
[1749356559481,0.20267659,105570.0,105560.0,2.4186299]
[1749356559682,0.20267659,105570.0,105560.0,2.43240991]
[1749356560182,0.20267659,105570.0,105560.0,1.71080992]
[1749356560382,0.20267659,105570.0,105560.0,2.43240992]
[1749356560583,0.20267659,105570.0,105560.0,2.43241051]
[1749356560973,0.20267659,105570.0,105560.0,2.4186299]
[1749356561179,0.20267659,105570.0,105560.0,1.71081051]
[1749356561374,0.20267659,105570.0,105560.0,1.71080973]
[1749356561579,0.20267659,105570.0,105560.0,1.50384584]
[1749356561781,0.20267659,105570.0,105560.0,2.22544584]
[1749356561979,0.20267659,105570.0,105560.0,2.22544583]
[1749356562584,0.20267659,105570.0,105560.0,2.21166601]
[1749356562790,0.20267659,105570.0,105560.0,2.22544585]
[1749356562986,0.20267659,105570.0,105560.0,2.43242924]
[1749356563183,0.20267659,105570.0,105560.0,2.43242923]
[1749356563383,0.20267659,105570.0,105560.0,1.71082937]
[1749356563583,0.20267659,105570.0,105560.0,2.43242938]
[1749356563886,0.20267659,105570.0,105560.0,1.71082938]
[1749356564079,0.20267659,105570.0,105560.0,2.43242938]
[1749356564283,0.20267659,105570.0,105560.0,1.71082938]
[1749356564480,0.20267659,105570.0,105560.0,2.4186494]
[1749356564880,0.20267659,105570.0,105560.0,2.43242937]
[1749356565077,0.20267659,105570.0,105560.0,2.43242936]
[1749356565387,0.20267659,105570.0,105560.0,2.43242931]
[1749356565888,0.20267659,105570.0,105560.0,2.4324293]
[1749356566088,0.20267659,105570.0,105560.0,2.43242928]
[1749356566390,0.20267659,105570.0,105560.0,2.4186494]
[1749356566588,0.20267659,105570.0,105560.0,2.43237786]
[1749356566791,0.20267659,105570.0,105560.0,2.4186494]
[1749356566985,0.09814878,105570.0,105560.0,2.43237786]
[1749356567192,0.20267659,105570.0,105560.0,2.43237786]
[1749356567992,0.20267659,105570.0,105560.0,2.43225786]
[1749356569785,0.20267659,105570.0,105560.0,1.6969294]
[1749356569991,0.20267659,105570.0,105560.0,2.43225786]
[1749356571391,0.20267659,105570.0,105560.0,2.43225784]
[1749356571688,0.20267659,105570.0,105560.0,2.4185294]
[1749356571993,0.20267659,105570.0,105560.0,2.43225785]
[1749356572190,0.20267659,105570.0,105560.0,2.4185294]
[1749356572386,0.20267659,105570.0,105560.0,1.71065782]
[1749356572582,0.20267659,105570.0,105560.0,2.43225782]
[1749356573295,0.20267659,105570.0,105560.0,2.22527443]
[1749356573495,0.20267659,105570.0,105560.0,2.2252744]
[1749356573883,0.20267659,105570.0,105560.0,2.22527442]
[1749356574082,0.09814878,105570.0,105560.0,2.22527442]
[1749356574293,0.20267659,105570.0,105560.0,2.22527445]
[1749356574492,0.20267659,105570.0,105560.0,2.22527446]
[1749356574996,0.20267659,105570.0,105560.0,2.22527443]
[1749356575194,0.20267659,105570.0,105560.0,2.22527442]
[1749356575495,0.20267659,105570.0,105560.0,0.97691442]
[1749356575695,0.20267659,105570.0,105560.0,2.22527443]
[1749356576795,0.20267659,105570.0,105560.0,2.21154601]
[1749356576996,0.20267659,105570.0,105560.0,2.22527443]
[1749356577299,0.20267659,105570.0,105560.0,2.22527441]
[1749356577598,0.20267659,105570.0,105560.0,2.21154601]
[1749356577793,0.20267659,105570.0,105560.0,2.22527442]
[1749356578598,0.20267659,105570.0,105560.0,2.21154601]
[1749356578796,0.20267659,105570.0,105560.0,2.22527443]
[1749356578991,0.20267659,105570.0,105560.0,2.22527442]
[1749356579301,0.20267659,105570.0,105560.0,2.22527441]
[1749356579802,0.20267659,105570.0,105560.0,1.69851441]
[1749356580099,0.20267659,105570.0,105560.0,2.22527441]
[1749356580398,0.20267659,105570.0,105560.0,2.21154601]
[1749356580599,0.20267659,105570.0,105560.0,2.2252748]
[1749356580791,0.20267659,105570.0,105560.0,2.21154601]
[1749356581191,0.20267659,105570.0,105560.0,2.22527443]
[1749356582299,0.20267659,105570.0,105560.0,2.21154601]
[1749356582503,0.20267659,105570.0,105560.0,1.48994601]
[1749356582800,0.20267659,105570.0,105560.0,2.21154601]
[1749356582996,0.20267659,105570.0,105560.0,1.50367444]
[1749356583301,0.20267659,105570.0,105560.0,2.22527444]
[1749356583499,0.20267659,105570.0,105560.0,2.21154601]
[1749356583701,0.20267659,105570.0,105560.0,2.22527442]
[1749356583899,0.20267659,105570.0,105560.0,2.21154601]
[1749356584095,0.20267659,105570.0,105560.0,2.22527443]
[1749356584604,0.20267659,105570.0,105560.0,2.21154601]
[1749356584790,0.20267659,105570.0,105560.0,1.50367443]
[1749356585399,0.20267659,105570.0,105560.0,2.22527443]
[1749356585703,0.20267659,105570.0,105560.0,2.21154601]
[1749356585896,0.20267659,105570.0,105560.0,2.22527442]
[1749356586299,0.20267659,105570.0,105560.0,2.21154601]
[1749356586499,0.20267659,105570.0,105560.0,2.22527443]
[1749356587599,0.20267659,105570.0,105560.0,2.21154601]
[1749356587794,0.20267659,105570.0,105560.0,2.22527443]
[1749356589200,0.20267659,105570.0,105560.0,2.22543577]
[1749356589495,0.20267659,105570.0,105560.0,2.21154601]
[1749356589795,0.20267659,105570.0,105560.0,1.48994601]
[1749356590002,0.20267659,105570.0,105560.0,2.21154601]
[1749356590301,0.20267659,105570.0,105560.0,2.22543578]
[1749356590600,0.20267659,105570.0,105560.0,2.22539579]
[1749356591001,0.20267659,105570.0,105560.0,2.21150601]
[1749356591200,0.20267659,105570.0,105560.0,2.22539654]
[1749356591402,0.20267659,105570.0,105560.0,2.21150601]
[1749356591702,0.20267659,105570.0,105560.0,2.22539656]
[1749356592202,0.20267659,105570.0,105560.0,1.50379656]
[1749356592403,0.20267659,105570.0,105560.0,2.22539656]
[1749356592904,0.20267659,105570.0,105560.0,2.21150601]
[1749356593100,0.20267659,105570.0,105560.0,2.22539656]
[1749356593704,0.20267659,105570.0,105560.0,1.50379656]
[1749356593905,0.20267659,105570.0,105560.0,2.22539656]
[1749356594204,0.10466958,105580.0,105570.0,0.1893542]
[1749356594404,0.20919739,105580.0,105570.0,1.2694627]
[1749356594606,0.20919739,105580.0,105570.0,1.28335091]
[1749356594797,0.20919739,105580.0,105570.0,1.28335069]
[1749356594998,0.20919739,105580.0,105570.0,1.38707547]
[1749356595906,0.20919739,105580.0,105570.0,1.38696791]
[1749356596204,0.20919739,105580.0,105570.0,1.38696793]
[1749356596500,0.20919739,105580.0,105570.0,1.38696791]
[1749356596805,0.20919739,105580.0,105570.0,1.38696793]
[1749356597306,0.20919739,105580.0,105570.0,1.34696788]
[1749356597702,0.20919739,105580.0,105570.0,1.33318769]
[1749356598006,0.30559739,105580.0,105570.0,1.70776816]
[1749356598200,0.30559739,105580.0,105570.0,1.70776815]
[1749356598401,0.30559739,105580.0,105570.0,1.69398769]
[1749356598602,0.30559739,105580.0,105570.0,1.70776806]
[1749356599104,0.30964617,105580.0,105570.0,1.70776806]
[1749356599304,0.30964617,105580.0,105570.0,1.60956806]
[1749356599507,0.43303499,105580.0,105570.0,1.38578769]
[1749356599805,0.43303499,105580.0,105570.0,1.48732297]
[1749356600603,0.43303499,105580.0,105570.0,1.60558699]
[1749356601507,0.43303499,105580.0,105570.0,1.45773822]
[1749356607711,0.62237169,105580.0,105570.0,1.45773822]
[1749356608611,0.62237169,105580.0,105570.0,1.54637782]
[1749356608812,0.51784388,105580.0,105570.0,1.54637782]
[1749356609708,0.32850718,105580.0,105570.0,1.54637782]
[1749356609909,0.32850718,105580.0,105570.0,0.82477782]
[1749356610110,0.32850718,105580.0,105570.0,1.54637782]
[1749356610313,0.32850718,105580.0,105570.0,0.82477782]
[1749356610511,0.43303499,105580.0,105570.0,0.82477782]
[1749356610711,0.43303499,105580.0,105570.0,1.54637782]
[1749356610912,0.32850718,105580.0,105570.0,1.54637782]
[1749356611711,0.32850718,105580.0,105570.0,1.45773822]
[1749356612513,0.32850718,105580.0,105570.0,0.73613822]
[1749356612816,0.32850718,105580.0,105570.0,1.45773822]
[1749356613216,0.51784348,105580.0,105570.0,1.45773822]
[1749356614517,0.30878786,105580.0,105570.0,1.45773822]
[1749356614719,0.51784348,105580.0,105570.0,1.45773822]
[1749356615217,0.62237129,105580.0,105570.0,1.02921822]
[1749356615418,0.62237129,105580.0,105570.0,1.45773822]
[1749356617412,0.62237129,105580.0,105570.0,0.73613822]
[1749356617619,0.62237129,105580.0,105570.0,1.45773822]
[1749356618922,0.62237129,105580.0,105570.0,0.73613822]
[1749356619124,0.62237129,105580.0,105570.0,1.45773822]
[1749356619426,0.62237129,105580.0,105570.0,0.73613822]
[1749356619724,0.62237129,105580.0,105570.0,1.45773822]
[1749356620926,0.62237129,105580.0,105570.0,0.73613822]
[1749356621127,0.62237129,105580.0,105570.0,1.45773822]
[1749356621527,0.62237129,105580.0,105570.0,1.42812468]
[1749356621930,0.62237129,105580.0,105570.0,0.70652468]
[1749356622125,0.62237129,105580.0,105570.0,1.45773822]
[1749356623629,0.62237129,105580.0,105570.0,1.02921822]
[1749356623830,0.62237129,105580.0,105570.0,1.45773822]
[1749356626032,0.62237129,105580.0,105570.0,0.73613822]
[1749356626234,0.62237129,105580.0,105570.0,1.52203822]
[1749356628035,0.62237129,105580.0,105570.0,1.02921822]
[1749356628235,0.62237129,105580.0,105570.0,1.4281596]
[1749356628934,0.62237129,105580.0,105570.0,1.0673596]
[1749356631838,0.62237129,105580.0,105570.0,1.1319596]
[1749356632141,0.66237129,105580.0,105570.0,1.1319596]
[1749356633342,0.66237129,105580.0,105570.0,0.7711596]
[1749356633640,0.66237129,105580.0,105570.0,1.1319596]
[1749356641644,0.66237129,105580.0,105570.0,1.19107402]
[1749356643944,0.66237129,105580.0,105570.0,1.22257402]
[1749356644547,0.62947129,105580.0,105570.0,1.22257402]
[1749356648351,0.62947129,105580.0,105570.0,0.86177402]
[1749356648544,0.62947129,105580.0,105570.0,1.22257402]
[1749356650754,0.62947129,105580.0,105570.0,0.86177402]
[1749356650945,0.62947129,105580.0,105570.0,1.22257402]
[1749356651549,0.62947129,105580.0,105570.0,1.1634596]
[1749356654553,0.62947129,105580.0,105570.0,0.8026596]
[1749356654854,0.62947129,105580.0,105570.0,1.1634596]
[1749356655554,0.62947129,105580.0,105570.0,1.28172362]
[1749356656556,0.62947129,105580.0,105570.0,0.92092362]
[1749356656759,0.62947129,105580.0,105570.0,1.28172362]
[1749356656957,0.62947129,105580.0,105570.0,0.92092362]
[1749356657257,0.62947129,105580.0,105570.0,1.28172362]
[1749356658759,0.59657129,105580.0,105570.0,1.28172362]
[1749356659254,0.59657129,105580.0,105570.0,1.1634596]
[1749356660456,0.28298786,105580.0,105570.0,1.1634596]
[1749356660761,0.59657129,105580.0,105570.0,1.1634596]
[1749356661660,0.59657129,105580.0,105570.0,0.8026596]
[1749356661862,0.59657129,105580.0,105570.0,1.1634596]
[1749356665459,0.49204348,105580.0,105570.0,1.1634596]
[1749356665954,0.49204348,105580.0,105570.0,0.92092362]
[1749356666159,0.49204348,105580.0,105570.0,1.28172362]
[1749356667762,0.59657129,105580.0,105570.0,0.75710362]
[1749356668069,0.1893546,105570.0,105560.0,0.61801837]
[1749356668261,1.11137022,105570.0,105560.0,0.67718582]
[1749356668461,1.11137022,105570.0,105560.0,0.72156595]
[1749356669267,1.20023955,105570.0,105560.0,0.72256595]
[1749356669469,1.20023955,105570.0,105560.0,0.6633985]
[1749356669671,1.20023955,105570.0,105560.0,0.72356595]
[1749356669861,1.20023955,105570.0,105560.0,0.6643985]
[1749356670065,1.11137022,105570.0,105560.0,0.6643985]
[1749356670259,1.11137022,105570.0,105560.0,0.2358785]
[1749356670468,1.11137022,105570.0,105560.0,0.6643985]
[1749356675276,1.11137022,105570.0,105560.0,0.62001837]
[1749356676472,1.115419,105570.0,105560.0,0.62001837]
[1749356677371,0.845419,105570.0,105560.0,0.62001837]
[1749356681874,0.845419,105570.0,105560.0,0.19149837]
[1749356682172,0.845419,105570.0,105560.0,0.62005837]
[1749356689979,0.63636338,105570.0,105560.0,0.62005837]
[1749356690181,0.845419,105570.0,105560.0,0.62005837]
[1749356690478,0.845419,105570.0,105560.0,0.68395837]
[1749356691779,0.93428833,105570.0,105560.0,0.68395837]
[1749356693981,1.49188833,105570.0,105560.0,0.00214177]
[1749356694180,1.52418833,105570.0,105560.0,0.00214177]
[1749356694978,1.64268077,105570.0,105560.0,0.00214177]
[1749356695178,1.55381144,105570.0,105560.0,0.00214177]
[1749356698685,1.435319,105570.0,105560.0,0.00214177]
[1749356699679,1.22626338,105570.0,105560.0,0.00214177]
[1749356700080,1.435319,105570.0,105560.0,0.00214177]
[1749356701591,1.52405832,105570.0,105560.0,0.00214177]
[1749356705988,1.52405832,105570.0,105560.0,0.19151437]
[1749356706287,1.52405832,105570.0,105560.0,0.00214177]
[1749356710790,1.64255076,105570.0,105560.0,0.00214177]
[1749356711192,1.28175076,105570.0,105560.0,0.00214177]
[1749356711393,1.64255076,105570.0,105560.0,0.00214177]
[1749356712394,1.28175076,105570.0,105560.0,0.00214177]
[1749356712895,1.64255076,105570.0,105560.0,0.19151477]
[1749356719093,1.55381144,105570.0,105560.0,0.19151477]
[1749356719593,1.57302287,105570.0,105560.0,0.19151477]
[1749356721788,1.57302287,105570.0,105560.0,0.00214177]
[1749356722292,1.57302287,105570.0,105560.0,0.19151477]
[1749356731901,1.72113842,105570.0,105560.0,0.19151477]
[1749356733403,1.57302287,105570.0,105560.0,0.19151477]
[1749356733703,1.72113842,105570.0,105560.0,0.19151477]
[1749356734205,1.57302287,105570.0,105560.0,0.19151477]
[1749356734704,1.72113842,105570.0,105560.0,0.19151477]
[1749356734904,1.57302287,105570.0,105560.0,0.19151477]
[1749356735203,1.72113842,105570.0,105560.0,0.19151477]
[1749356738107,1.36033842,105570.0,105560.0,0.19151477]
[1749356738309,1.72113842,105570.0,105560.0,0.19151477]
[1749356741711,1.57302287,105570.0,105560.0,0.19151477]
[1749356743816,1.21222287,105570.0,105560.0,0.19151477]
[1749356744018,1.57302287,105570.0,105560.0,0.19151477]
[1749356746219,1.21222287,105570.0,105560.0,0.19151477]
[1749356746418,1.57302287,105570.0,105560.0,0.19151477]
[1749356747121,1.36396725,105570.0,105560.0,0.19151477]
[1749356747521,1.57302287,105570.0,105560.0,0.19151477]
[1749356751922,1.36396725,105570.0,105560.0,0.19151477]
[1749356752124,1.57302287,105570.0,105560.0,0.19151477]
[1749356753126,1.21222287,105570.0,105560.0,0.19151477]
[1749356753523,1.57302287,105570.0,105560.0,0.19151477]
[1749356754529,1.36396725,105570.0,105560.0,0.19151477]
[1749356754730,1.57302287,105570.0,105560.0,0.19151477]
[1749356756541,1.21222287,105570.0,105560.0,0.19151477]
[1749356756731,1.57302287,105570.0,105560.0,0.19151477]
[1749356756932,1.21222287,105570.0,105560.0,0.19151477]
[1749356757133,1.57302287,105570.0,105560.0,0.19151477]
[1749356757433,1.21222287,105570.0,105560.0,0.19151477]
[1749356757631,1.57302287,105570.0,105560.0,0.19151477]
[1749356763637,1.36396725,105570.0,105560.0,0.19151477]
[1749356763839,1.01399506,105570.0,105560.0,0.23591436]
[1749356764038,0.98432551,105570.0,105560.0,0.33301436]
[1749356764636,0.98432551,105570.0,105560.0,0.39218181]
[1749356764837,0.69661091,105570.0,105560.0,0.75298181]
[1749356765035,0.12798802,105570.0,105560.0,0.79715428]
[1749356765433,0.12778802,105570.0,105560.0,0.79715428]
[1749356765636,0.12798802,105570.0,105560.0,0.79715428]
[1749356767739,0.31734302,105570.0,105560.0,0.79715428]
[1749356769443,0.31734302,105570.0,105560.0,0.8414533]
[1749356771844,0.31734302,105570.0,105560.0,0.75288124]
[1749356776649,0.12798802,105570.0,105560.0,0.75288124]
[1749356777350,0.31734302,105570.0,105560.0,0.75288124]
[1749356781753,0.31734302,105570.0,105560.0,0.69371379]
[1749356783354,0.31734302,105570.0,105560.0,0.33291379]
[1749356783658,0.31734302,105570.0,105560.0,0.69371379]
[1749356784656,0.31734302,105570.0,105560.0,0.33291379]
[1749356785145,0.31734302,105570.0,105560.0,0.69371379]
[1749356785552,0.31734302,105570.0,105560.0,0.33291379]
[1749356785754,0.31734302,105570.0,105560.0,0.69371379]
[1749356786357,0.31734302,105570.0,105560.0,0.75288124]
[1749356787757,0.31734302,105570.0,105560.0,1.18140124]
[1749356789461,0.31734302,105570.0,105560.0,0.82060124]
[1749356789656,0.31734302,105570.0,105560.0,1.18140124]
[1749356790158,0.34904302,105570.0,105560.0,1.18140124]
[1749356791754,0.34904302,105570.0,105560.0,1.22567428]
[1749356794360,0.34904302,105570.0,105560.0,1.16650683]
[1749356795662,0.34884302,105570.0,105560.0,1.16650683]
[1749356799667,0.34884302,105570.0,105560.0,0.80570683]
[1749356799858,0.34884302,105570.0,105560.0,1.16650683]
[1749356804765,0.34884302,105570.0,105560.0,0.80570683]
[1749356805066,0.34884302,105570.0,105560.0,1.16650683]
[1749356806759,0.34884302,105570.0,105560.0,0.80570683]
[1749356807066,0.34884302,105570.0,105560.0,1.16650683]
[1749356811370,0.12778802,105570.0,105560.0,1.16650683]
[1749356811569,0.31714282,105570.0,105560.0,1.16650683]
[1749356812470,0.12778802,105570.0,105560.0,1.16650683]
[1749356812671,0.31714282,105570.0,105560.0,1.16650683]
[1749356813371,0.12778802,105570.0,105560.0,1.16650683]
[1749356814770,0.31714282,105570.0,105560.0,1.16650683]
[1749356815569,0.31714282,105570.0,105560.0,0.80570683]
[1749356815874,0.31714282,105570.0,105560.0,1.16650683]
[1749356816172,0.12778802,105570.0,105560.0,1.16650683]
[1749356816674,0.31714282,105570.0,105560.0,1.16650683]
[1749356817274,0.12778802,105570.0,105560.0,1.16650683]
[1749356817474,0.31714282,105570.0,105560.0,1.16650683]
[1749356820680,0.12778802,105570.0,105560.0,1.16650683]
[1749356821675,0.12778802,105570.0,105560.0,1.22567807]
[1749356830385,0.12778802,105570.0,105560.0,0.86487807]
[1749356830584,0.12778802,105570.0,105560.0,1.22567807]
[1749356831286,0.12778802,105570.0,105560.0,0.86487807]
[1749356831585,0.12778802,105570.0,105560.0,1.22567807]
[1749356831783,0.12778802,105570.0,105560.0,1.28461206]
[1749356834784,0.12778802,105570.0,105560.0,1.19604]
[1749356839587,0.10452781,105570.0,105560.0,1.19604]
[1749356840589,0.10857659,105570.0,105560.0,1.19604]
[1749356843495,0.10857659,105570.0,105560.0,1.07793477]
[1749356845095,0.10857659,105570.0,105560.0,1.19628057]
[1749356848292,0.29793139,105570.0,105560.0,1.19628057]
[1749356848499,0.10857659,105570.0,105560.0,1.19628057]
[1749356851299,0.10857659,105570.0,105560.0,1.20628057]
[1749356851595,0.10877659,105570.0,105560.0,1.20628057]
[1749356851799,0.10877659,105570.0,105560.0,1.29503866]
[1749356852696,0.10877659,105570.0,105560.0,1.45233866]
[1749356852902,0.10877659,105570.0,105560.0,1.29503866]
[1749356860704,0.10877659,105570.0,105560.0,0.93423866]
[1749356860905,0.10877659,105570.0,105560.0,1.29503866]
[1749356861106,0.00424878,105570.0,105560.0,1.29503866]
[1749356861409,0.10877659,105570.0,105560.0,1.29503866]
[1749356861907,0.10877659,105570.0,105560.0,1.20628057]
[1749356862608,0.10877659,105570.0,105560.0,1.17668803]
[1749356867209,0.29813139,105570.0,105560.0,1.17668803]
[1749356867913,0.10877659,105570.0,105560.0,1.17668803]
[1749356869415,0.10877659,105570.0,105560.0,1.29503383]
[1749356869617,0.29813139,105570.0,105560.0,1.29503383]
[1749356870217,0.10877659,105570.0,105560.0,1.29503383]
[1749356870813,0.10877659,105570.0,105560.0,1.31213735]
[1749356871818,0.10877659,105570.0,105560.0,1.19379155]
[1749356872922,0.29813139,105570.0,105560.0,1.19379155]
[1749356879232,0.29408261,105570.0,105560.0,1.19379155]
[1749356880126,0.29813139,105570.0,105560.0,1.19379155]
[1749356881725,0.10877659,105570.0,105560.0,1.22338409]
[1749356883226,0.10857659,105570.0,105560.0,1.22338409]
[1749356884028,0.29793139,105570.0,105560.0,1.22338409]
[1749356890229,0.29388261,105570.0,105560.0,1.22338409]
[1749356891330,0.29793139,105570.0,105560.0,1.22338409]
[1749356895537,0.10857659,105570.0,105560.0,1.22338409]
[1749356895841,0.29793139,105570.0,105560.0,1.22338409]
[1749356896336,0.29793139,105570.0,105560.0,1.58418409]
[1749356896337,0.29388261,105570.0,105560.0,1.58418409]
[1749356896837,0.10452781,105570.0,105560.0,1.58418409]
[1749356897241,0.42213627,105580.0,105570.0,0.1893548]
[1749356897439,1.1550717,105580.0,105570.0,0.74245129]
[1749356898642,1.2250717,105580.0,105570.0,0.74245129]
[1749356900741,1.2250717,105580.0,105570.0,0.38165129]
[1749356900944,1.2250717,105580.0,105570.0,0.74245129]
[1749356901641,1.2250717,105580.0,105570.0,0.65369906]
[1749356904845,1.2250717,105580.0,105570.0,0.29289906]
[1749356905045,1.2250717,105580.0,105570.0,0.65369906]
[1749356905645,1.2250717,105580.0,105570.0,0.29289906]
[1749356906047,1.2250717,105580.0,105570.0,0.65369906]
[1749356906846,1.2250717,105580.0,105570.0,0.29289906]
[1749356907042,1.2250717,105580.0,105570.0,0.65369906]
[1749356907942,1.2250717,105580.0,105570.0,0.29289906]
[1749356908149,1.2250717,105580.0,105570.0,0.65369906]
[1749356911749,1.2250717,105580.0,105570.0,0.59453091]
[1749356913751,1.2250717,105580.0,105570.0,0.23373091]
[1749356914252,1.2250717,105580.0,105570.0,0.59453091]
[1749356914751,1.22912048,105580.0,105570.0,0.59453091]
[1749356917849,1.22912048,105580.0,105570.0,0.59453052]
[1749356918151,1.12459267,105580.0,105570.0,0.59453052]
[1749356918553,1.22912048,105580.0,105570.0,0.59453052]
[1749356919653,1.12459267,105580.0,105570.0,0.59453052]
[1749356921654,1.12459267,105580.0,105570.0,0.65369867]
[1749356923450,1.12459267,105580.0,105570.0,0.60932295]
[1749356923655,1.12459267,105580.0,105570.0,0.65370095]
[1749356926160,1.12459267,105580.0,105570.0,0.29290095]
[1749356926359,1.12459267,105580.0,105570.0,0.65370095]